bitfinex/quotes_BTCUSD_20241201
["timestamp","ask_amount","ask_price","bid_price","bid_amount"]
[1733069808621,0.001,97322.0,97316.0,0.1316]
[1733069808850,0.001,97322.0,97317.0,0.205513]
[1733069809090,0.02017809,97326.0,97321.0,0.205503]
[1733069809317,0.004,97323.0,97322.0,0.0828]
[1733069809558,0.004,97323.0,97322.0,0.08653502]
[1733069810746,0.0017268,97332.0,97322.0,0.29203702]
[1733069811223,0.205484,97331.0,97322.0,0.29203702]
[1733069811466,0.0017268,97332.0,97322.0,0.08653502]
[1733069811690,0.0017268,97332.0,97322.0,0.08953502]
[1733069811691,0.001,97323.0,97322.0,0.08953502]
[1733069811918,0.0017268,97332.0,97322.0,0.08853502]
[1733069812146,0.0017268,97332.0,97322.0,0.08653502]
[1733069812399,0.0017268,97332.0,97323.0,0.205501]
[1733069812636,0.001,97331.0,97323.0,0.00373494]
[1733069813123,0.001,97331.0,97325.0,0.205497]
[1733069813370,0.001,97331.0,97327.0,0.023]
[1733069813603,0.001,97331.0,97330.0,0.205486]
[1733069813844,0.0017268,97332.0,97330.0,0.39123121]
[1733069814073,0.0017268,97332.0,97331.0,0.18574521]
[1733069814295,0.0027268,97332.0,97331.0,0.18574521]
[1733069814557,0.0017268,97332.0,97331.0,0.18946462]
[1733069815862,0.0017268,97332.0,97331.0,0.19146462]
[1733069817031,0.0027268,97332.0,97331.0,0.19246462]
[1733069817223,0.0017268,97332.0,97331.0,0.19146462]
[1733069817510,0.0027268,97332.0,97331.0,0.19246462]
[1733069821597,0.0027268,97332.0,97331.0,0.26398293]
[1733069821806,0.0027268,97332.0,97331.0,0.26216462]
[1733069828259,0.0027268,97332.0,97331.0,0.08961941]
[1733069829633,0.0027268,97332.0,97331.0,0.08461941]
[1733069831496,0.0027268,97332.0,97331.0,0.18746462]
[1733069831717,0.0027268,97332.0,97331.0,0.23516462]
[1733069832622,0.0027268,97332.0,97331.0,0.23602802]
[1733069832843,0.0027268,97332.0,97331.0,0.38602802]
[1733069833373,0.0027268,97332.0,97331.0,0.40902802]
[1733069835714,0.0027268,97332.0,97331.0,0.46097422]
[1733069835958,0.00190501,97335.0,97334.0,0.378478]
[1733069836176,0.00190501,97335.0,97334.0,0.63756941]
[1733069836400,0.00190501,97335.0,97334.0,0.64126661]
[1733069837575,0.00290501,97335.0,97334.0,0.65026661]
[1733069838970,0.00390501,97335.0,97334.0,0.65726661]
[1733069840719,0.00390501,97335.0,97334.0,0.96548661]
[1733069840930,0.00390501,97335.0,97334.0,0.93416761]
[1733069841644,0.00390501,97335.0,97334.0,0.95416761]
[1733069842348,0.0017278,97355.0,97334.0,0.95416761]
[1733069842349,0.0017278,97355.0,97352.0,0.15]
[1733069842584,0.0017278,97355.0,97354.0,0.173]
[1733069842807,0.0017278,97355.0,97354.0,0.27766289]
[1733069843030,0.0017278,97355.0,97354.0,0.27952606]
[1733069843272,0.0017278,97355.0,97354.0,0.58767606]
[1733069844552,0.0027278,97355.0,97354.0,0.58767606]
[1733069844993,0.0017278,97355.0,97354.0,0.58767606]
[1733069845220,0.0027278,97355.0,97354.0,0.59267606]
[1733069845709,0.0027278,97355.0,97354.0,0.59467606]
[1733069847715,0.0027278,97355.0,97354.0,0.60591356]
[1733069848140,0.0027278,97355.0,97354.0,0.43291356]
[1733069848376,0.0027278,97355.0,97354.0,0.45591356]
[1733069848816,0.0027278,97355.0,97354.0,0.44467606]
[1733069851277,0.0027278,97355.0,97354.0,0.42167606]
[1733069852618,0.0027278,97355.0,97354.0,0.77421106]
[1733069854207,0.0017278,97355.0,97354.0,0.76921106]
[1733069854446,0.0017278,97355.0,97354.0,0.77321106]
[1733069854678,0.0017278,97355.0,97354.0,0.76721106]
[1733069854908,0.0017278,97355.0,97354.0,0.76921106]
[1733069855131,0.0027278,97355.0,97354.0,0.77821106]
[1733069855363,0.0027278,97355.0,97354.0,0.77621106]
[1733069855595,0.0027278,97355.0,97354.0,0.78021106]
[1733069862099,0.0027278,97355.0,97354.0,0.92921106]
[1733069863678,0.0027278,97355.0,97354.0,1.62921106]
[1733069864023,0.0027278,97355.0,97354.0,1.64921106]
[1733069864234,0.0027278,97355.0,97354.0,1.68110051]
[1733069865143,0.0468,97396.0,97362.0,0.023]
[1733069865357,0.0468,97396.0,97384.0,0.205371]
[1733069865572,0.0468,97396.0,97385.0,0.10284521]
[1733069865803,0.0468,97396.0,97385.0,0.10650339]
[1733069866258,0.0468,97396.0,97386.0,0.205368]
[1733069866474,0.0107268,97389.0,97387.0,0.10284521]
[1733069866688,0.01132175,97389.0,97387.0,0.10650324]
[1733069866909,0.01132175,97389.0,97388.0,0.205364]
[1733069867131,0.01132175,97389.0,97388.0,0.30820921]
[1733069867345,0.01132175,97389.0,97388.0,0.31186716]
[1733069867583,0.00232175,97389.0,97388.0,0.10650316]
[1733069868673,0.00232175,97389.0,97388.0,0.10750316]
[1733069869570,0.00232175,97389.0,97388.0,0.11150316]
[1733069870223,0.03410349,97396.0,97388.0,0.11150316]
[1733069870444,0.03428061,97396.0,97389.0,0.10284521]
[1733069870690,0.205349,97395.0,97389.0,0.10550308]
[1733069871117,0.205358,97391.0,97389.0,0.10550308]
[1733069871328,0.03428061,97396.0,97389.0,0.10550308]
[1733069871578,0.03382661,97396.0,97389.0,0.10550308]
[1733069871819,0.205349,97395.0,97389.0,0.10650308]
[1733069872050,0.205349,97395.0,97389.0,0.10184521]
[1733069872519,0.205349,97395.0,97389.0,0.10484521]
[1733069872718,0.205349,97395.0,97389.0,0.10184521]
[1733069873021,0.205349,97395.0,97390.0,0.0036578]
[1733069873235,0.205349,97395.0,97391.0,0.00365772]
[1733069873469,0.205349,97395.0,97390.0,0.10284521]
[1733069873956,0.205349,97395.0,97391.0,0.00365772]
[1733069874379,0.205349,97395.0,97390.0,0.10284521]
[1733069874841,0.205349,97395.0,97392.0,0.00365764]
[1733069875072,0.205349,97395.0,97391.0,0.00365772]
[1733069875347,0.205349,97395.0,97390.0,0.10284521]
[1733069875565,0.205349,97395.0,97251.0,0.5941]
[1733069875566,0.0805,97395.0,97371.0,0.15]
[1733069875779,0.205353,97393.0,97391.0,0.00365772]
[1733069876018,0.205353,97393.0,97390.0,0.001]
[1733069876302,0.00017712,97396.0,97392.0,0.10284521]
[1733069876535,0.00017712,97396.0,97393.0,0.41252295]
[1733069876744,0.00017712,97396.0,97395.0,0.228349]
[1733069876956,0.00017712,97396.0,97395.0,0.33119421]
[1733069877210,0.00017712,97396.0,97395.0,0.33483999]
[1733069877676,0.00017712,97396.0,97395.0,0.64285999]
[1733069879013,0.00017712,97396.0,97395.0,0.64385999]
[1733069879673,0.00017712,97396.0,97395.0,0.79385999]
[1733069881959,0.00085067,97399.0,97398.0,0.3058]
[1733069882166,0.0008636,97419.0,97399.0,0.37834]
[1733069882391,0.0008636,97419.0,97399.0,0.49118521]
[1733069882604,0.0008636,97419.0,97399.0,0.494821]
[1733069882806,0.0008636,97419.0,97399.0,0.802831]
[1733069883277,0.02068498,97415.0,97399.0,0.802831]
[1733069883521,0.02068498,97415.0,97399.0,0.792831]
[1733069883723,0.02068498,97415.0,97399.0,0.802831]
[1733069883974,0.02068498,97415.0,97399.0,0.811831]
[1733069884505,0.02068498,97415.0,97399.0,0.573491]
[1733069885179,0.0018629,97400.0,97399.0,0.579491]
[1733069885615,0.0008629,97400.0,97399.0,0.573491]
[1733069885845,0.0008629,97400.0,97399.0,0.564491]
[1733069887272,0.0008629,97400.0,97399.0,0.577491]
[1733069887498,0.0008629,97400.0,97399.0,0.572491]
[1733069887742,0.0008629,97400.0,97399.0,0.567491]
[1733069888226,0.0008629,97400.0,97399.0,0.564491]
[1733069888687,0.0008629,97400.0,97399.0,0.567491]
[1733069889399,0.0008629,97400.0,97399.0,0.573491]
[1733069889628,0.0008629,97400.0,97399.0,0.567491]
[1733069890078,0.0008629,97400.0,97399.0,0.573491]
[1733069892744,0.0008629,97400.0,97399.0,0.567491]
[1733069892976,0.0008629,97400.0,97399.0,0.570491]
[1733069893440,0.0008629,97400.0,97399.0,0.567491]
[1733069893923,0.0008629,97400.0,97399.0,0.568491]
[1733069894391,0.0008629,97400.0,97399.0,0.567491]
[1733069894604,0.0008629,97400.0,97399.0,0.568491]
[1733069896143,0.02135155,97400.0,97399.0,0.568491]
[1733069901901,0.09965155,97400.0,97399.0,0.418491]
[1733069902389,0.02135155,97400.0,97399.0,0.418491]
[1733069902850,0.02135155,97400.0,97399.0,0.417491]
[1733069903078,0.02135155,97400.0,97399.0,0.414491]
[1733069903304,0.02135155,97400.0,97399.0,0.415491]
[1733069903608,0.02135155,97400.0,97399.0,0.418491]
[1733069904984,0.02135155,97400.0,97399.0,0.441491]
[1733069905429,0.02135155,97400.0,97399.0,0.4423543]
[1733069908428,0.02135155,97400.0,97399.0,0.4417788]
[1733069909079,0.02135155,97400.0,97399.0,0.4407788]
[1733069909308,0.02135155,97400.0,97399.0,0.4377788]
[1733069909546,0.02135155,97400.0,97399.0,0.4407788]
[1733069910211,0.02135155,97400.0,97399.0,0.4417788]
[1733069917192,0.02135155,97400.0,97399.0,0.4407788]
[1733069917400,0.02135155,97400.0,97399.0,0.4377788]
[1733069926899,0.0008629,97400.0,97399.0,0.5176788]
[1733069928436,0.0008629,97400.0,97399.0,0.5196788]
[1733069928648,0.0008629,97400.0,97399.0,0.5176788]
[1733069929084,0.0008629,97400.0,97399.0,0.5196788]
[1733069929306,0.0008629,97400.0,97399.0,0.5206788]
[1733069929780,0.0008629,97400.0,97399.0,0.5196788]
[1733069930233,0.0008629,97400.0,97399.0,0.5206788]
[1733069933338,0.0008629,97400.0,97399.0,0.4407788]
[1733069934727,0.0008629,97400.0,97399.0,0.4397788]
[1733069935642,0.0008629,97400.0,97399.0,0.4377788]
[1733069935856,0.0008629,97400.0,97399.0,0.4387788]
[1733069936068,0.0008629,97400.0,97399.0,0.4397788]
[1733069936299,0.0008629,97400.0,97399.0,0.4387788]
[1733069936514,0.0008629,97400.0,97399.0,0.4407788]
[1733069940784,0.0008629,97400.0,97399.0,0.5194788]
[1733069944889,0.0008629,97400.0,97399.0,0.4964788]
[1733069945540,0.0008629,97400.0,97399.0,0.5194788]
[1733069945784,0.0008629,97400.0,97399.0,0.5647788]
[1733069946430,0.0008629,97400.0,97399.0,0.5637788]
[1733069946896,0.0008629,97400.0,97399.0,0.5617788]
[1733069947336,0.0008629,97400.0,97399.0,0.5637788]
[1733069947765,0.0008629,97400.0,97399.0,0.5647788]
[1733069958606,0.0008629,97400.0,97399.0,0.7147788]
[1733069959980,0.0008629,97400.0,97399.0,0.7137788]
[1733069960409,0.0008629,97400.0,97399.0,0.7147788]
[1733069961590,0.0008629,97400.0,97399.0,0.7137788]
[1733069962039,0.0008629,97400.0,97399.0,0.7147788]
[1733069964234,0.0008629,97400.0,97399.0,0.74669103]
[1733069964885,0.0008629,97400.0,97399.0,0.74569103]
[1733069965145,0.0008629,97400.0,97399.0,0.75569103]
[1733069965342,0.0018629,97400.0,97399.0,0.76269103]
[1733069965986,0.0018629,97400.0,97399.0,0.76069103]
[1733069966215,0.0018629,97400.0,97399.0,0.76969103]
[1733069966670,0.0018629,97400.0,97399.0,0.7377788]
[1733069969764,0.0008636,97420.0,97418.0,0.2053]
[1733069969982,0.0008636,97420.0,97419.0,0.1276617]
[1733069970199,0.0008636,97420.0,97419.0,0.13150562]
[1733069972321,0.0008636,97420.0,97419.0,0.13350562]
[1733069973268,0.00060562,97420.0,97419.0,0.13350562]
[1733069974394,0.00060562,97420.0,97419.0,0.13750562]
[1733069975629,0.00060562,97420.0,97419.0,0.13655233]
[1733069978263,0.00060562,97420.0,97419.0,0.11355233]
[1733069981239,0.00060562,97420.0,97419.0,0.12459649]
[1733069982988,0.00060562,97420.0,97419.0,0.12259649]
[1733069984141,0.00060562,97420.0,97419.0,0.11859649]
[1733069984368,0.00060562,97420.0,97419.0,0.12059649]
[1733069984595,0.00060562,97420.0,97419.0,0.11959649]
[1733069985057,0.00060562,97420.0,97419.0,0.12259649]
[1733069985287,0.00060562,97420.0,97419.0,0.12459649]
[1733070009479,0.00060562,97420.0,97419.0,0.12459649]
[1733070011271,0.04630562,97420.0,97419.0,0.11355233]
[1733070011973,0.00060562,97420.0,97419.0,0.11355233]
[1733070015052,0.20590162,97420.0,97419.0,0.01070712]
[1733070015536,0.20590162,97420.0,97419.0,0.0068632]
[1733070016673,0.20590162,97420.0,97419.0,0.0028632]
[1733070017154,0.20590162,97420.0,97419.0,0.0008632]
[1733070017385,0.20790162,97420.0,97419.0,0.0008632]
[1733070017845,0.20590162,97420.0,97419.0,0.0008632]
[1733070018754,0.25470162,97420.0,97419.0,0.0008632]
[1733070019050,0.25470162,97420.0,97419.0,0.0018632]
[1733070019513,0.25470162,97420.0,97419.0,0.0008632]
[1733070021960,0.25570162,97420.0,97419.0,0.0008632]
[1733070039515,0.20690162,97420.0,97419.0,0.0008632]
[1733070041912,0.25650162,97420.0,97419.0,0.0008632]
[1733070048805,0.20690162,97420.0,97419.0,0.0008632]
[1733070056550,0.20590162,97420.0,97419.0,0.0008632]
[1733070056757,0.20990162,97420.0,97419.0,0.0008632]
[1733070058484,0.21190162,97420.0,97419.0,0.0018632]
[1733070060435,0.20790162,97420.0,97419.0,0.0018632]
[1733070060653,0.20590162,97420.0,97419.0,0.0008632]
[1733070060870,0.20790162,97420.0,97419.0,0.0008632]
[1733070061801,0.205326,97406.0,97405.0,0.1201632]
[1733070062028,0.205326,97406.0,97405.0,0.22300841]
[1733070062245,0.205326,97406.0,97405.0,0.22842606]
[1733070064245,0.205326,97406.0,97405.0,0.22942606]
[1733070067005,0.22607935,97406.0,97405.0,0.22942606]
[1733070067451,0.22607935,97406.0,97405.0,0.23115306]
[1733070067731,0.205326,97406.0,97405.0,0.23115306]
[1733070075091,0.205326,97406.0,97405.0,0.11098986]
[1733070084423,0.31810342,97406.0,97405.0,0.00814465]
[1733070084641,0.332726,97406.0,97405.0,0.00814465]
[1733070085579,0.334726,97406.0,97405.0,0.00714465]
[1733070086309,0.336726,97406.0,97405.0,0.00714465]
[1733070086753,0.359726,97406.0,97405.0,0.00714465]
[1733070086993,0.43984342,97406.0,97405.0,0.00714465]
[1733070087209,0.359726,97406.0,97405.0,0.00714465]
[1733070087673,0.355726,97406.0,97405.0,0.00714465]
[1733070087892,0.355726,97406.0,97405.0,0.00814465]
[1733070088111,0.357726,97406.0,97405.0,0.00814465]
[1733070088347,0.355726,97406.0,97405.0,0.00714465]
[1733070088581,0.360726,97406.0,97405.0,0.00714465]
[1733070088815,0.362726,97406.0,97405.0,0.00814465]
[1733070089047,0.357726,97406.0,97405.0,0.00814465]
[1733070089262,0.363726,97406.0,97405.0,0.00914465]
[1733070090225,0.3645895,97406.0,97405.0,0.00914465]
[1733070091331,0.2862895,97406.0,97405.0,0.00914465]
[1733070097622,0.36385278,97406.0,97405.0,0.00914465]
[1733070098030,0.2862895,97406.0,97405.0,0.00914465]
[1733070109943,0.2632895,97406.0,97405.0,0.00914465]
[1733070121122,0.2141895,97406.0,97405.0,0.00914465]
[1733070133941,0.2141895,97406.0,97400.0,1.88566145]
[1733070134184,0.251936,97401.0,97400.0,1.88566145]
[1733070135307,0.38778121,97401.0,97400.0,1.88566145]
[1733070135529,0.38778121,97401.0,97400.0,1.88666145]
[1733070135775,0.38778121,97401.0,97400.0,1.88766145]
[1733070136043,0.38778121,97401.0,97400.0,1.88666145]
[1733070136283,0.39278121,97401.0,97400.0,1.88666145]
[1733070136500,0.39978121,97401.0,97400.0,1.88766145]
[1733070136942,0.49001108,97401.0,97400.0,1.70293353]
[1733070137154,0.56771108,97401.0,97400.0,1.70293353]
[1733070137837,0.56771108,97401.0,97400.0,1.66186553]
[1733070138056,0.57771108,97401.0,97400.0,1.60026353]
[1733070138292,0.57771108,97401.0,97400.0,1.59826353]
[1733070138293,0.56571108,97401.0,97400.0,1.59826353]
[1733070138549,0.57471108,97401.0,97400.0,1.59826353]
[1733070138769,0.57971108,97401.0,97400.0,1.53666153]
[1733070139010,0.76457064,97401.0,97400.0,1.49559353]
[1733070139235,0.57471108,97401.0,97400.0,1.49559353]
[1733070139471,0.58171108,97401.0,97400.0,1.49659353]
[1733070139718,0.58171108,97401.0,97400.0,1.45552553]
[1733070139947,0.58171108,97401.0,97400.0,1.39392353]
[1733070139948,0.48248121,97401.0,97400.0,1.39392353]
[1733070140162,0.49148121,97401.0,97400.0,1.39392353]
[1733070140872,0.49148121,97401.0,97400.0,1.29125353]
[1733070141163,0.48448121,97401.0,97400.0,1.29025353]
[1733070141383,0.49348121,97401.0,97400.0,1.29025353]
[1733070141623,0.49348121,97401.0,97400.0,1.2952383]
[1733070141868,0.49348121,97401.0,97400.0,1.1925683]
[1733070142123,0.48348121,97401.0,97400.0,1.1925683]
[1733070142345,0.32618121,97401.0,97400.0,1.1925683]
[1733070142560,0.33618121,97401.0,97400.0,1.1925683]
[1733070142793,0.34618121,97401.0,97400.0,1.1925683]
[1733070143017,0.33618121,97401.0,97400.0,1.1925683]
[1733070143237,0.32618121,97401.0,97400.0,1.1925683]
[1733070144169,0.223336,97401.0,97400.0,1.1925683]
[1733070144394,0.233336,97401.0,97400.0,1.1925683]
[1733070145137,0.31818121,97401.0,97400.0,1.1925683]
[1733070145413,0.31818121,97401.0,97400.0,1.1935683]
[1733070145414,0.33618121,97401.0,97400.0,1.1935683]
[1733070145627,0.35418121,97401.0,97400.0,1.1935683]
[1733070145840,0.33118121,97401.0,97400.0,1.1925683]
[1733070146061,0.34018121,97401.0,97400.0,1.1925683]
[1733070146356,0.34718121,97401.0,97400.0,1.1935683]
[1733070146572,0.35618121,97401.0,97400.0,1.1952953]
[1733070147007,0.34718121,97401.0,97400.0,1.1952953]
[1733070147444,0.34018121,97401.0,97400.0,1.1942953]
[1733070147949,0.34618121,97401.0,97400.0,1.1952953]
[1733070148201,0.35518121,97401.0,97400.0,1.1952953]
[1733070150494,0.43385108,97401.0,97400.0,1.1952953]
[1733070151186,0.35518121,97401.0,97400.0,1.1952953]
[1733070155356,0.229336,97401.0,97400.0,1.1952953]
[1733070155575,0.229336,97401.0,97400.0,1.2737953]
[1733070156887,0.223336,97401.0,97400.0,1.2727953]
[1733070157311,0.229336,97401.0,97400.0,1.2737953]
[1733070157572,0.211336,97401.0,97400.0,1.2737953]
[1733070157797,0.220336,97401.0,97400.0,1.2737953]
[1733070159158,0.2211995,97401.0,97400.0,1.2737953]
[1733070169850,0.2211995,97401.0,97400.0,1.1952953]
[1733070173957,0.2211995,97401.0,97400.0,1.3224953]
[1733070174455,0.2441995,97401.0,97400.0,1.3224953]
[1733070176020,0.2211995,97401.0,97400.0,1.3224953]
[1733070177412,0.2151995,97401.0,97400.0,1.3214953]
[1733070177644,0.2111995,97401.0,97400.0,1.3214953]
[1733070178112,0.2181995,97401.0,97400.0,1.3214953]
[1733070178765,0.0128635,97401.0,97400.0,1.3214953]
[1733070181432,0.0128635,97401.0,97400.0,1.2758953]
[1733070185058,0.205323,97408.0,97400.0,1.2758953]
[1733070185059,0.0008636,97422.0,97402.0,0.0497]
[1733070185294,0.0008636,97422.0,97418.0,0.126]
[1733070185538,0.0008636,97422.0,97419.0,0.23066185]
[1733070185811,0.0008636,97422.0,97419.0,0.43912562]
[1733070186511,0.0008636,97422.0,97419.0,0.23382762]
[1733070186981,0.00160562,97420.0,97419.0,0.23482762]
[1733070192433,0.0012792,97420.0,97419.0,0.23482762]
[1733070193362,0.0012792,97420.0,97419.0,0.08228241]
[1733070193579,0.0012792,97420.0,97419.0,0.0773]
[1733070195955,0.0012792,97420.0,97419.0,0.08225325]
[1733070196375,0.0012792,97420.0,97419.0,0.0773]
[1733070205072,0.0012792,97420.0,97419.0,0.0790268]
[1733070208882,0.0012792,97420.0,97419.0,0.0027268]
[1733070210429,0.0002792,97420.0,97419.0,0.0027268]
[1733070210693,0.0262792,97420.0,97419.0,0.0017268]
[1733070210947,0.0312792,97420.0,97419.0,0.0017268]
[1733070211177,0.0052792,97420.0,97419.0,0.0017268]
[1733070211415,0.0002792,97420.0,97419.0,0.0017268]
[1733070211640,0.0072792,97420.0,97419.0,0.0017268]
[1733070212323,0.0002792,97420.0,97419.0,0.0017268]
[1733070213796,0.0072792,97420.0,97419.0,0.0017268]
[1733070218496,0.0302792,97420.0,97419.0,0.0017268]
[1733070226497,0.25786549,97420.0,97419.0,0.0017268]
[1733070227624,0.25486549,97420.0,97419.0,0.0017268]
[1733070227834,0.26386549,97420.0,97419.0,0.0027268]
[1733070228050,0.25986549,97420.0,97419.0,0.0027268]
[1733070228260,0.26886549,97420.0,97419.0,0.0037268]
[1733070229845,0.26583541,97420.0,97419.0,0.0027268]
[1733070230055,0.27383541,97420.0,97419.0,0.0037268]
[1733070235836,0.19423541,97420.0,97419.0,0.0037268]
[1733070245727,0.19423541,97420.0,97419.0,8e-07]
[1733070246453,0.28063541,97420.0,97419.0,8e-07]
[1733070251255,0.28063541,97420.0,97419.0,6e-07]
[1733070255905,0.28063541,97420.0,97400.0,1.08664113]
[1733070255906,0.225336,97401.0,97400.0,1.08664113]
[1733070256115,0.48138121,97401.0,97400.0,1.08664113]
[1733070256332,0.48138121,97401.0,97400.0,1.09141278]
[1733070256842,0.48138121,97401.0,97400.0,0.98874278]
[1733070257049,0.57058433,97401.0,97400.0,0.98874278]
[1733070257533,0.57958433,97401.0,97400.0,0.98974278]
[1733070257764,0.48138121,97401.0,97400.0,0.88607278]
[1733070258022,0.49038121,97401.0,97400.0,0.88707278]
[1733070258675,0.49938121,97401.0,97400.0,0.88707278]
[1733070258918,0.49938121,97401.0,97400.0,0.82547078]
[1733070259130,0.49038121,97401.0,97400.0,0.78440278]
[1733070259607,0.49938121,97401.0,97400.0,0.78440278]
[1733070259817,0.58948433,97401.0,97400.0,0.74333478]
[1733070260025,0.58948433,97401.0,97400.0,0.68173278]
[1733070261428,0.49938121,97401.0,97400.0,0.68173278]
[1733070263091,0.50024471,97401.0,97400.0,0.68173278]
[1733070265984,0.50024471,97401.0,97400.0,0.66119878]
[1733070266187,0.50024471,97401.0,97400.0,0.59959678]
[1733070266400,0.50024471,97401.0,97400.0,0.57906278]
[1733070266619,0.59133418,97401.0,97400.0,0.57906278]
[1733070267453,0.59133418,97401.0,97400.0,0.55852878]
[1733070267676,0.50024471,97401.0,97400.0,0.55852878]
[1733070268582,0.50024471,97401.0,97400.0,0.51746078]
[1733070269731,0.37004471,97401.0,97400.0,0.51746078]
[1733070275342,0.15470871,97401.0,97400.0,0.51746078]
[1733070275551,0.36004471,97401.0,97400.0,0.51746078]
[1733070276661,0.35004471,97401.0,97400.0,0.51746078]
[1733070276847,0.36004471,97401.0,97400.0,0.51746078]
[1733070283497,0.43711418,97401.0,97400.0,0.51746078]
[1733070287507,0.43711418,97401.0,97400.0,0.49692678]
[1733070287955,0.36004471,97401.0,97400.0,0.49692678]
[1733070291962,0.36004471,97401.0,97400.0,0.39425678]
[1733070292934,0.36004471,97401.0,97400.0,0.29158678]
[1733070293869,0.40744471,97401.0,97400.0,0.16773279]
[1733070294121,0.51027617,97401.0,97400.0,0.16296114]
[1733070294843,0.66027617,97401.0,97400.0,0.06028714]
[1733070295380,0.74007617,97401.0,97400.0,0.06028714]
[1733070295858,0.74007617,97401.0,97395.0,5.6e-07]
[1733070295859,0.238347,97396.0,97395.0,5.6e-07]
[1733070296070,0.44402367,97396.0,97395.0,5.6e-07]
[1733070297288,0.46102367,97396.0,97395.0,5.6e-07]
[1733070300594,0.61102367,97396.0,97395.0,5.6e-07]
[1733070300817,0.84682367,97396.0,97395.0,5.6e-07]
[1733070301703,0.83882367,97396.0,97395.0,5.6e-07]
[1733070301920,0.82982367,97396.0,97395.0,5.6e-07]
[1733070302356,0.83882367,97396.0,97395.0,5.6e-07]
[1733070303207,0.84782367,97396.0,97395.0,5.6e-07]
[1733070304721,0.85195672,97396.0,97395.0,5.6e-07]
[1733070304949,1.16373725,97396.0,97395.0,5.6e-07]
[1733070305436,0.84295672,97396.0,97395.0,5.6e-07]
[1733070305924,0.228418,97362.0,97361.0,0.0807631]
[1733070306155,0.33126321,97362.0,97361.0,0.0807631]
[1733070306386,0.33126321,97362.0,97361.0,0.08506477]
[1733070306617,0.33126321,97362.0,97361.0,0.0807631]
[1733070307346,0.3403729,97362.0,97361.0,0.0807631]
[1733070307569,0.40495099,97362.0,97361.0,0.0807631]
[1733070308755,0.3493729,97362.0,97361.0,0.0807631]
[1733070317785,0.3493729,97362.0,97361.0,0.0008631]
[1733070321893,0.3493729,97362.0,97361.0,0.0478631]
[1733070325194,0.3263729,97362.0,97361.0,0.1233631]
[1733070325388,0.22352769,97362.0,97361.0,0.1233631]
[1733070334813,0.3493729,97362.0,97361.0,0.0763631]
[1733070343137,0.3263729,97362.0,97361.0,0.1215631]
[1733070353635,0.3263729,97362.0,97361.0,0.0763631]
[1733070354582,0.3493729,97362.0,97361.0,0.0008631]
[1733070361411,0.3493729,97362.0,97361.0,1e-07]
[1733070361412,0.4417558,97362.0,97361.0,1e-07]
[1733070361854,0.5917558,97362.0,97361.0,1e-07]
[1733070362077,0.5471729,97362.0,97361.0,1e-07]
[1733070362554,0.6379729,97362.0,97361.0,1e-07]
[1733070362781,0.6199729,97362.0,97361.0,1e-07]
[1733070363011,0.205446,97349.0,97348.0,3e-07]
[1733070363238,0.60989121,97349.0,97348.0,3e-07]
[1733070363453,0.63448267,97349.0,97348.0,3e-07]
[1733070364139,0.60989121,97349.0,97348.0,3e-07]
[1733070364422,0.52909121,97349.0,97348.0,3e-07]
[1733070365096,0.48129121,97349.0,97348.0,3e-07]
[1733070365309,0.49029121,97349.0,97348.0,3e-07]
[1733070366436,0.49929121,97349.0,97348.0,3e-07]
[1733070368396,0.59130803,97349.0,97348.0,3e-07]
[1733070371366,0.49929121,97349.0,97348.0,3e-07]
[1733070374777,0.51000606,97349.0,97348.0,3e-07]
[1733070380489,0.33700606,97349.0,97348.0,3e-07]
[1733070380691,0.33700606,97349.0,97348.0,0.0794003]
[1733070380900,0.223446,97349.0,97348.0,0.1250003]
[1733070382937,0.214446,97349.0,97348.0,0.1250003]
[1733070383165,0.208446,97349.0,97348.0,0.1294954]
[1733070383388,0.217446,97349.0,97348.0,0.1294954]
[1733070383600,0.205446,97349.0,97348.0,0.1294954]
[1733070384052,0.210446,97349.0,97348.0,0.1294954]
[1733070384467,0.219446,97349.0,97348.0,0.1294954]
[1733070385597,0.214446,97349.0,97348.0,0.1294954]
[1733070385807,0.205446,97349.0,97348.0,0.1294954]
[1733070386016,0.210446,97349.0,97348.0,0.1294954]
[1733070391011,0.005,97349.0,97348.0,0.1394954]
[1733070392228,0.003,97349.0,97348.0,0.1394954]
[1733070392469,0.005,97349.0,97348.0,0.1394954]
[1733070392957,0.205442,97351.0,97348.0,0.1394954]
[1733070393176,0.205442,97351.0,97349.0,0.1272]
[1733070393388,0.205442,97351.0,97350.0,0.08397109]
[1733070394030,0.205442,97351.0,97350.0,0.13167109]
[1733070396190,0.205442,97351.0,97350.0,0.14167109]
[1733070396408,0.205435,97355.0,97351.0,0.1272]
[1733070396622,0.205435,97355.0,97351.0,0.0795]
[1733070396831,0.41087,97355.0,97352.0,0.0521705]
[1733070397131,0.205435,97355.0,97353.0,0.0813]
[1733070397553,0.205435,97355.0,97353.0,0.0857704]
[1733070397744,0.207435,97355.0,97354.0,0.1289]
[1733070398244,0.205435,97355.0,97354.0,0.13337031]
[1733070398686,0.205435,97355.0,97354.0,0.14337031]
[1733070398913,0.0008634,97361.0,97354.0,0.01447031]
[1733070399139,0.0008634,97361.0,97356.0,0.1251]
[1733070399377,0.0008634,97361.0,97354.0,0.01447031]
[1733070399378,0.0008634,97361.0,97357.0,0.13138789]
[1733070399608,0.0008634,97361.0,97357.0,0.00628789]
[1733070399841,0.0008634,97361.0,97359.0,0.1251]
[1733070400075,0.0038634,97361.0,97360.0,0.0782]
[1733070400308,0.0088634,97361.0,97360.0,0.08266975]
[1733070400547,0.0038634,97361.0,97360.0,0.08266975]
[1733070400778,0.0028634,97361.0,97360.0,0.08266975]
[1733070401034,0.0038634,97361.0,97360.0,0.08266975]
[1733070401291,0.0018634,97361.0,97360.0,0.08266975]
[1733070404073,0.0038634,97361.0,97360.0,0.08266975]
[1733070412021,0.0038634,97361.0,97360.0,0.14028761]
[1733070412242,0.0038634,97361.0,97360.0,0.13846975]
[1733070415273,0.0038634,97361.0,97360.0,0.14201418]
[1733070422396,0.0038634,97361.0,97360.0,0.14019655]
[1733070425624,0.0038634,97361.0,97360.0,0.14201422]
[1733070434581,0.0038634,97361.0,97360.0,0.14019655]
[1733070436629,0.2092844,97361.0,97360.0,0.14019655]
[1733070438138,0.2092844,97361.0,97360.0,0.09439655]
[1733070439072,0.2092844,97361.0,97360.0,0.01619655]
[1733070442227,0.2092844,97361.0,97360.0,0.0117268]
[1733070447444,0.2092844,97361.0,97360.0,0.0017268]
[1733070447696,0.2092844,97361.0,97360.0,0.0117268]
[1733070454413,0.2092844,97361.0,97360.0,0.0017268]
[1733070463180,0.2547844,97361.0,97360.0,0.0017268]
[1733070476272,0.2525844,97361.0,97360.0,0.0017268]
[1733070483165,0.2534478,97361.0,97360.0,0.0017268]
[1733070483596,0.2079478,97361.0,97360.0,0.0017268]
[1733070499791,0.2079478,97361.0,97360.0,0.0908268]
[1733070500134,0.2079478,97361.0,97360.0,0.09516587]
[1733070500787,0.0025268,97361.0,97360.0,0.09516587]